Cogmind - Beta 14 @@@ ROGUE MODE // 2024.10.11 @ 02:10:34 Player: youngster Result: System corrupted Performance ------------- Evolutions (4) 2000 Regions Visited (14) 2800 Robots Destroyed (319) 1595 Value Destroyed (10102) 10102 Prototype IDs (261) 5220 Alien Tech Used (0) 0 Bonus (4432) 4432 TOTAL SCORE: 26149 Bonus ------- High Alert Combat Kills 897 Follower Combat Kills 1885 Aligned with FarCom 300 Met Data Miner 300 Used Data Conduit 3000 Friendly Fire -1950 Cogmind --------- Core Integrity 0/850 Matter 237/300 Energy 38/100 System Corruption 127% Temperature Cool (0) Movement Core (100) Ox1 Location -6/Data Miner Parts ------- > --- POWER (1) -------- (None) > --- PROPULSION (4) --- (None) > --- UTILITY (7) ------ Experimental Core Analyzer > --- WEAPON (3) ------- System Spiker > --- INVENTORY (5) ---- Remote Datajack Peak State ------------ > --- POWER ------------ Cold Fusion Reactor > --- PROPULSION ------- Ballwheel > --- UTILITY ---------- Cargo Storage Unit Experimental Sensor Array Experimental Signal Interpreter Modified TNC Experimental Core Analyzer Transmission Jammer > --- WEAPON ----------- Heavy Phase Cannon 8R-AWN's Boregun LU-1G1's Laser Shovel > --- INVENTORY -------- Nuclear Core Medium Treads Medium Treads Advanced Heat Sink Matter Compressor Advanced Terrain Scanner Advanced Terrain Scanner Seismic Detector Experimental Targeting Computer Improved Particle Charger Advanced Weapon Cycler ID Mask Hardened Medium Armor Plating Hardened Heavy Armor Plating Improved Heavy Armor Plating EM Disruption Field Improved Shield Generator Improved Shield Generator High-powered Tractor Beam Drone Bay HERF Cannon HERF Cannon HERF Cannon Heavy Plasma Cannon Heavy Phase Cannon Remote Datajack System Spiker Great Axe [Rating: 102] Favorites ----------- Power Reinforced Fission Core Engine Improved Ion Engine Power Core Reinforced Fission Core Reactor Cold Fusion Reactor Propulsion Light Treads Treads Light Treads Leg Overtuned Flexi-carbon Leg Wheel Ballwheel Utility Huge Storage Unit Device Seismic Detector Storage Huge Storage Unit Processor Experimental Core Analyzer Hackware System Shield Protection Hardened Light Armor Plating Weapon Gauss Rifle Energy Gun AWS/EX-DEC Energy Cannon Heavy Phase Cannon Ballistic Gun Gauss Rifle Ballistic Cannon Siege Cannon Launcher YI-UF0's Doublenader Special Weapon LU-1G1's Laser Shovel Impact Weapon Flail Slashing Weapon Great Axe Special Melee Weapon Improved Datajack Build | -11 -10 -10 -9 -9 -9 -8 -8 -8 -8 -8 -6 -6 -6 -6 ------- Run | Yrd Mat Min Mat Min Exi Min Mat Sto Rec Scr Fac Low Low Dat Slots Evolved 8 | . . . 2 . . . 2 . . . 4 . . . Power . | . . . . . . . . . . . . . . . Propulsion 2 | . . . . . . . 1 . . . 1 . . . Utility 5 | . . . 2 . . . . . . . 3 . . . Weapon 1 | . . . . . . . 1 . . . . . . . Parts Attached 490 | 7 27 6 57 9 21 12 54 31 5 85 84 33 39 20 Power 16 | 1 2 . 6 . 2 . . . . 3 1 . . 1 Engine 12 | 1 2 . 6 . 1 . . . . 2 . . . . Core 2 | . . . . . 1 . . . . . . . . 1 Reactor 2 | . . . . . . . . . . 1 1 . . . Propulsion 112 | 2 14 1 17 1 5 . 9 3 . 29 1 13 12 5 Treads 88 | 2 8 . 13 1 4 . 9 3 . 28 . 8 8 4 Leg 1 | . . . . . . . . . . 1 . . . . Wheel 23 | . 6 1 4 . 1 . . . . . 1 5 4 1 Hover . | . . . . . . . . . . . . . . . Flight . | . . . . . . . . . . . . . . . Utility 158 | 2 4 1 13 3 5 3 18 14 . 17 48 9 15 6 Device 83 | 1 1 1 3 2 . 1 9 11 . 5 29 7 12 1 Storage 7 | 1 1 . . . 2 . . . . . 3 . . . Processor 7 | . . . . . 1 . 1 1 . . 3 . . 1 Hackware 2 | . . . . . . . 1 . . . 1 . . . Protection 59 | . 2 . 10 1 2 2 7 2 . 12 12 2 3 4 Artifact . | . . . . . . . . . . . . . . . Weapon 204 | 2 7 4 21 5 9 9 27 14 5 36 34 11 12 8 Energy Gun 9 | 1 . 1 1 . 1 . 3 . . 1 . 1 . . Energy Cannon 14 | . . . . . . . . . . . 4 5 . 5 Ballistic Gun 101 | 1 5 2 14 1 8 4 12 7 2 23 16 2 3 1 Ballistic Cannon 4 | . . . . . . . . . . 4 . . . . Launcher 17 | . . 1 2 1 . 5 5 1 . . . 1 1 . Special Weapon 24 | . . . 3 . . . . . 1 5 6 2 6 1 Impact Weapon 5 | . . . . 2 . . 3 . . . . . . . Slashing Weapon 27 | . 2 . 1 . . . 4 5 1 3 8 . 2 1 Piercing Weapon . | . . . . . . . . . . . . . . . Special Melee Weapon 3 | . . . . 1 . . . 1 1 . . . . . Unidentified Prototypes 5 | . . 1 . . . . . . . 3 1 . . . Parts Lost 50 | . 3 . 5 . 8 . 3 3 . 10 1 . 2 15 Power 5 | . 2 . . . . . . . . 1 . . . 2 Propulsion 13 | . . . 2 . 3 . 1 1 . 4 . . . 2 Utility 15 | . . . 1 . 1 . 2 1 . 2 . . 1 7 Weapon 17 | . 1 . 2 . 4 . . 1 . 3 1 . 1 4 Highest Loss Streak 12 | . 1 . 1 . 8 . 2 2 . 4 1 . 1 12 To Critical Strikes 8 | . . . . . 6 . . . . 2 . . . . Average Slot Usage (%) 91 | . 99 100 99 100 96 98 91 93 100 90 73 72 70 55 Engine 5 | . 13 14 11 11 7 . . . . 3 . . . . Core 3 | . . . . . 3 11 9 9 9 5 . . . . Treads 18 | . 18 14 18 22 21 11 24 26 27 22 . . . 4 Wheel 2 | . 9 13 2 . . 11 2 . . . 6 5 5 3 Device 6 | . 5 13 2 10 6 3 7 10 9 2 9 12 10 3 Storage 9 | . 14 14 11 11 11 11 9 9 9 9 6 6 6 5 Processor 8 | . . . . . 4 11 9 11 18 11 19 20 18 11 Protection 13 | . 8 . 30 22 18 17 9 4 . 13 2 . 1 6 Energy Gun 1 | . 13 . . . . . 7 5 . . . . . . Ballistic Gun 13 | . 11 19 21 13 20 14 8 5 16 14 12 7 1 . Special Weapon 1 | . . . . . . . . . . 3 1 4 4 4 Slashing Weapon 1 | . 3 . . . . . 1 7 1 2 3 . 1 3 Peak Build Rating 102 | 7 8 12 20 20 50 50 64 63 60 68 101 101 102 95 Average Rating 44 | 5 7 10 16 18 24 34 54 58 54 54 92 95 96 71 On Entrance 44 | . 7 8 12 20 17 50 31 60 55 53 58 98 101 95 Naked Turns . | . . . . . . . . . . . . . . . Heaviest Build 203 | 12 88 91 107 107 133 130 135 129 116 143 192 187 187 203 Greatest Support 69 | 40 40 16 40 40 40 16 66 65 63 69 35 56 35 35 Greatest Overweight (x) 57 | . 5 5 9 2 8 8 7 1 1 2 5 57 5 5 Average Overweight (x) 2 | . 3 5 3 2 2 7 2 1 1 1 4 4 4 4 Largest Inventory Capacity 30 | 8 25 25 25 25 25 25 25 25 25 25 30 30 30 30 Average Capacity 25 | 7 22 25 25 25 23 25 25 25 25 25 28 30 30 28 Most Carried 30 | 6 13 17 25 25 25 25 25 25 25 25 30 30 30 30 Average Carried 23 | 2 11 15 24 24 19 24 24 23 24 23 28 29 29 23 Final Capacity 30 | 8 25 25 25 25 25 25 25 25 25 25 30 30 30 5 Final Carried 30 | 6 12 17 25 25 25 25 24 23 25 25 29 30 30 1 Class Distribution -------------------- 38% | Scavenger-Mutant 14% | Scavenger-Tank 11% | Mutant 8% | Commander-Mutant 8% | Hauler-Skirmisher 7% | Gunner 3% | Scavenger-Gunner Dominant Class ---------------- Mutant | -10/Materials Scavenger-Mutant | -10/Mines Scavenger-Mutant | -9/Materials Scavenger-Mutant | -9/Mines Scavenger-Mutant | -9/Exiles Scavenger-Mutant | -8/Mines Gunner | -8/Materials Mutant | -8/Storage Commander-Mutant | -8/Recycling Scavenger-Tank | -8/Scraptown Hauler-Assassin | -6/Factory Hauler-Skirmisher | -6/Lower Caves Hauler-Skirmisher | -6/Lower Caves Hauler-Mutant | -6/Data Miner Resources | -11 -10 -10 -9 -9 -9 -8 -8 -8 -8 -8 -6 -6 -6 -6 ----------- Run | Yrd Mat Min Mat Min Exi Min Mat Sto Rec Scr Fac Low Low Dat Matter Collected 13714 | 278 531 105 1139 175 863 84 1032 517 157 5663 1693 611 770 96 Remotely 162 | . . . . . . . . . . . 27 . 135 . Salvage Created 14257 | 128 488 165 1394 54 515 172 2776 1298 549 4062 1692 290 369 305 Parts 780 | 12 36 10 127 2 59 16 156 63 16 157 75 11 29 11 Haulers Intercepted 7 | . 2 . 2 . . . 1 . . . 2 . . . Recyclers Shooed 8 | 1 1 . 2 . . . . 1 2 . 1 . . . Parts Field Recycled . | . . . . . . . . . . . . . . . Retrieved Matter . | . . . . . . . . . . . . . . . Parts Self-Destructed 26 | . . . . . . . . . . 3 . 11 12 . Prevented 5 | . . . . . . . . . . . . 1 4 . Kills | -11 -10 -10 -9 -9 -9 -8 -8 -8 -8 -8 -6 -6 -6 -6 ------- Run | Yrd Mat Min Mat Min Exi Min Mat Sto Rec Scr Fac Low Low Dat Combat Hostiles Destroyed 251 | . 11 3 35 2 5 6 57 23 7 71 15 7 7 2 Melee 9 | . . . . . . . 3 3 1 . 2 . . . Guns 164 | . 11 3 32 1 5 2 38 18 6 36 12 . . . Cannons 45 | . . . . . . . . . . 35 . 4 5 1 AOE 21 | . . . 3 1 . 4 7 1 . . . 3 2 . Classes Destroyed 33 | 2 4 . 4 . 3 1 4 . 2 10 1 . 2 . Worker 11 | . . . 1 . . 1 5 . . . 4 . . . Builder 3 | . . . 2 . . . . . . . 1 . . . Tunneler 8 | 3 . . 1 . . 2 . . . 1 1 . . . Hauler 7 | . 2 . 2 . . . 1 . . . 2 . . . Recycler 13 | 1 1 . 1 . . . . 2 4 1 3 . . . Mechanic 2 | . . . . . . . . . . 1 1 . . . Operator 3 | . . . 1 . . . 1 1 . . . . . . Turret 2 | . . . . . 1 . . . . 1 . . . . Watcher 13 | . 2 . 3 . . . 5 1 . . 2 . . . Swarmer 59 | . 9 3 17 . . 3 12 4 1 . 3 3 4 . Grunt 62 | . 2 . 8 2 . 2 25 12 . . 6 3 2 . Brawler 6 | . . . . . . . 3 2 1 . . . . . Duelist 6 | . . . . . . 1 3 1 1 . . . . . Protector 3 | . . . . . . . 3 . . . . . . . Sentry 28 | . . . 10 . . . 9 4 1 . 2 1 1 . Demolisher 1 | . . . . . . . . . 1 . . . . . Specialist 2 | . . . . . . . . . . . 2 . . . Hunter 2 | . . . . . . . 1 . 1 . . . . . Programmer 3 | . . . . . . . . . 1 . 2 . . . Heavy 1 | . . . . . . . 1 . . . . . . . Enhanced Grunt 3 | . . . . . . . . . . . . . . 3 Bolteater 5 | . . . . . . . . . . 5 . . . . Federalist 9 | . . . . . . . . . . 9 . . . . Explorer 4 | . . . . . . . . . . 4 . . . . Ranger 5 | . . . . . . . . . . 5 . . . . Guru 5 | . . . . . . . . . . 5 . . . . Scientist 10 | . . . . . . . . . . 10 . . . . Scrapper 26 | . . . . . . . . . . 26 . . . . Elite 15 | . . . . . . . . . . 15 . . . . Zionite 10 | . . . . . 8 . . . . 2 . . . . Decomposer 1 | . . . . . . . . . . . . . 1 . Packrat 1 | . . . . . . . . . . 1 . . . . Samaritan 1 | . . . . . . . . . . . . . 1 . Tinkerer 2 | . . . . . . . . . . 2 . . . . Master Thief 2 | . . . . . . . . . . . . . 2 . Assembled 4 | . . . . . 4 . . . . . . . . . Thug 2 | . . . . . . . . . . 2 . . . . Best Kill Streak 16 | 4 4 3 8 2 4 5 6 5 5 16 6 3 4 1 Combat Bots Only 10 | . 4 3 7 2 4 3 6 5 3 10 3 3 4 1 Max Kills in Single Turn 4 | 1 2 2 3 1 2 2 4 1 2 2 2 3 2 1 Gunslinging 1 | . 1 1 . . . . . . . 1 . . . . Exploded 4 | . . . 3 1 . 2 4 1 . . . 3 2 . Melee 1 | . . . . . . . 1 1 1 . 1 . . . Uniques/NPCs Destroyed 6 | . . 1 . . 4 . . . . 1 . . . . YI-UF0 (-10/Mines) 8R-AWN (-9/Exiles) EX-BIN (-9/Exiles) EX-HEX (-9/Exiles) EX-DEC (-9/Exiles) Triborg (-8/Scraptown) Combat | -11 -10 -10 -9 -9 -9 -8 -8 -8 -8 -8 -6 -6 -6 -6 -------- Run | Yrd Mat Min Mat Min Exi Min Mat Sto Rec Scr Fac Low Low Dat Hostile Shots Fired 1103 | . 82 12 181 7 90 13 112 94 21 227 140 21 25 78 Missed 298 | . 22 4 35 3 19 . 28 23 7 70 53 7 9 18 Damage Taken 13604 | . 638 66 1631 81 1252 112 1622 1020 324 2646 930 285 248 2749 Core 1273 | . 92 13 146 . 91 10 190 96 . 196 99 33 17 290 Absorbed by Shields 339 | . . . . . . . 24 188 . . 92 . . 35 Reduced by Siege Mode 74 | . . . . . . . . . . 74 . . . . Redirected to Shielding 66 | . 15 2 28 . 21 . . . . . . . . . Ignored by Resistances 16 | . . . . . . . . . . . 16 . . . Regen/Repaired (Parts) 487 | . 41 . 186 . . . 260 . . . . . . . Core Remaining (%) 52 | 100 . 58 . . . 38 . . . 12 . . . . Volleys Fired 820 | 8 67 19 137 7 66 10 55 22 13 230 73 23 53 37 Largest 3 | 2 2 2 2 2 2 2 3 3 3 3 3 3 2 2 Hottest 180 | 70 70 60 100 70 68 70 86 88 83 91 176 150 180 176 Shots Fired 1674 | 16 134 38 264 12 131 17 186 81 30 461 163 43 64 34 Gun 1438 | 16 134 38 255 10 131 14 184 81 30 347 147 20 31 . Cannon 197 | . . . . . . . . . . 108 16 22 19 32 Launcher 13 | . . . 1 2 . 3 2 . . . . 1 4 . Special 26 | . . . 8 . . . . . . 6 . . 10 2 Kinetic 1331 | 8 89 35 253 10 127 14 76 36 30 455 147 20 31 . Thermal 112 | 8 45 . 8 . . . . . . 3 2 20 19 7 Explosive 13 | . . . 1 2 . 3 2 . . . . 1 4 . Electromagnetic 203 | . . 3 2 . 4 . 108 45 . . 14 2 . 25 Robot Hit Streak 29 | 9 10 6 20 3 13 6 29 23 8 28 13 12 11 3 Robot Miss Streak 5 | 1 4 4 3 1 5 2 2 4 2 4 4 1 2 3 Penetration Max 2 | . . . . . 1 1 1 2 1 1 1 . . . Secondary Targets 12 | . 1 1 3 . 1 . . . 1 4 1 . . . Max Gunslinging Chain 1 | . 1 1 1 . 1 . . . 1 1 1 . . . Autonomous 153 | . . . . . . . 108 45 . . . . . . Shots Hit Robots 1203 | 12 87 23 173 8 95 8 186 81 43 301 108 23 38 17 Core Hits 575 | 7 32 11 84 3 39 14 110 38 11 138 50 11 19 8 Critical Kills 28 | . . . 2 . 6 . 1 5 . 8 4 . 2 . Critical Parts Destroyed 44 | . . . 1 . 6 1 7 5 . 10 12 . 2 . Critical Strikes 96 | 1 3 . 3 . 12 1 13 15 . 25 17 1 4 1 Burn 4 | 1 3 . . . . . . . . . . . . . Destroy 70 | . . . 3 . 12 1 4 11 . 18 16 1 4 . Blast 7 | . . . . . . . . . . 7 . . . . Corrupt 9 | . . . . . . . 4 3 . . 1 . . 1 Smash 5 | . . . . . . . 5 . . . . . . . Sever 1 | . . . . . . . . 1 . . . . . . Melee Attacks 174 | . 5 . 1 6 4 . 27 28 24 39 34 . . 6 Impact 23 | . . . . 6 . . 17 . . . . . . . Slashing 126 | . 5 . 1 . . . 10 28 4 38 34 . . 6 Piercing . | . . . . . . . . . . . . . . . Sneak Attacks 44 | . . . . . 4 . 2 3 23 2 9 . . 1 Combat Hostiles 17 | . . . . . . . . . 17 . . . . . Follow-up Attacks . | . . . . . . . . . . . . . . . Damage Inflicted 29734 | 118 799 198 2444 227 1429 507 5475 2444 793 9752 3230 809 1028 481 Guns 17760 | 118 798 198 2213 127 1425 155 4269 1693 451 3965 1777 245 326 . Cannons 7348 | . . . . . . . . . . 5715 413 395 448 377 Explosions 1732 | . . . 181 89 . 352 623 64 . . . 169 254 . Melee 2796 | . . . . . . . 583 676 328 65 1040 . . 104 Ramming 98 | . 1 . 50 11 4 . . 11 14 7 . . . . Kinetic 18937 | 54 518 163 2195 127 1423 155 1167 656 451 9680 1777 245 326 . Thermal 1325 | 64 280 . . . . . 117 64 . . 33 319 448 . Explosive 1551 | . . . 181 89 . 352 506 . . . . 169 254 . Electromagnetic 5027 | . . 35 18 . 2 . 3102 1037 . . 380 76 . 377 Impact 483 | . . . . . . . 483 . . . . . . . Slashing 2313 | . . . . . . . 100 676 328 65 1040 . . 104 Piercing . | . . . . . . . . . . . . . . . Highest Corruption 127 | . . . . . . . . 2 2 2 . . 53 127 Average Corruption 12 | . . . . . . . . 2 2 1 . . 50 49 Corruption Purged 4 | . . . . . . . . . . . . . 4 . Corruption Blocked . | . . . . . . . . . . . . . . . Effects 84 | . . . . . . . . 13 14 6 . . 25 26 Message Errors 19 | . . . . . . . . 1 3 2 . . 8 5 Matter Fused 18 | . . . . . . . . 4 2 2 . . 6 4 Heat Flow Errors 5 | . . . . . . . . 1 . 1 . . 2 1 Energy Discharges 11 | . . . . . . . . 1 5 . . . 3 2 Data Loss (minor) 13 | . . . . . . . . 4 2 1 . . 3 3 Data Loss (major) 2 | . . . . . . . . 1 . . . . . 1 Misfires 5 | . . . . . . . . 1 1 . . . 2 1 Alerts 3 | . . . . . . . . . 1 . . . 1 1 Misdirections 2 | . . . . . . . . . . . . . . 2 Weapon Failures 6 | . . . . . . . . . . . . . . 6 Overload Shots . | . . . . . . . . . . . . . . . Overflow Damage 1549 | . . . . . . . 225 117 . 947 255 5 . . Projectiles 958 | . . . . . . . . . . 947 11 . . . Explosions 30 | . . . . . . . 25 . . . . 5 . . Melee 561 | . . . . . . . 200 117 . . 244 . . . Knockbacks 14 | . . . 1 1 . . 1 . 1 10 . . . . Impact 4 | . . . 1 1 . . 1 . 1 . . . . . Kinetic 10 | . . . . . . . . . . 10 . . . . Secondary . | . . . . . . . . . . . . . . . Self-Inflicted Damage 105 | . . . . 14 . . 64 27 . . . . . . Shots 4 | . . . . 1 . . 2 1 . . . . . . Rammed 16 | . 1 . 7 3 1 . . 2 1 1 . . . . Targets Rammed 18 | . 1 . 7 3 1 . 1 2 2 1 . . . . Kicked . | . . . . . . . . . . . . . . . Crushed 2 | . . . . . . . 1 . 1 . . . . . Highest Temperature 490 | 120 100 20 144 128 219 152 233 490 81 308 289 274 253 231 Average Temperature 63 | 58 28 15 44 82 81 59 76 109 21 68 70 87 111 35 Received Heat Transfer 2716 | . 180 . 495 24 60 . 384 471 36 671 287 63 45 . Effects 6 | . . . . . . . 3 1 . 1 . . 1 . Energy Bleed 1 | . . . . . . . 1 . . . . . . . Interference 4 | . . . . . . . 2 . . 1 . . 1 . Short Circuit 1 | . . . . . . . . 1 . . . . . . Siege Activations 8 | . . . . . . . . . . 8 . . . . Total Turns 2412 | . . . . . . . . . . 2412 . . . . Longest Duration 1228 | . . . . . . . . . . 1228 . . . . Robots Corrupted 14 | . . . . . . . 10 1 . . 1 . . 2 Combat Hostiles 12 | . . . . . . . 9 1 . . 1 . . 1 Parts Fried 44 | . . . . . . . 26 7 . . 6 . . 5 Impact Corruptions 8 | . . . . . . . 8 . . . . . . . Robots Melted . | . . . . . . . . . . . . . . . Combat Hostiles . | . . . . . . . . . . . . . . . Parts Melted 9 | . . . . . . . . . . 6 . 3 . . Heat Transferred 2526 | 259 1036 . . . . . 150 50 . . 50 500 481 . Parts Sabotaged . | . . . . . . . . . . . . . . . Parts Stolen 1 | . . . . . . . . . . . . . 1 . Parts Stripped . | . . . . . . . . . . . . . . . Power Chain Reactions 2 | . . . . . . . 1 1 . . . . . . Alert | -11 -10 -10 -9 -9 -9 -8 -8 -8 -8 -8 -6 -6 -6 -6 ------- Run | Yrd Mat Min Mat Min Exi Min Mat Sto Rec Scr Fac Low Low Dat Peak Influence 1047 | 20 120 106 348 104 . 182 1047 953 512 . 318 . . . Initial 442 | . 13 36 . 103 . . 70 442 330 . . . . . Average 221 | 8 37 33 212 19 . 130 501 700 316 . 146 . . . Maximum Alert Level 3 | . . . 1 . . . 3 3 2 . 1 . . . Low Security (%) 53 | 100 100 100 29 100 . 100 12 . 1 . 59 . . . Level 1 28 | . . . 70 . . . 27 . 80 . 40 . . . Level 2 10 | . . . . . . . 32 57 17 . . . . . Level 3 7 | . . . . . . . 28 42 . . . . . . Level 4 . | . . . . . . . . . . . . . . . Level 5 . | . . . . . . . . . . . . . . . High Security . | . . . . . . . . . . . . . . . Max Security . | . . . . . . . . . . . . . . . Sterilizations 1 | . . . . . . . 1 . . . . . . . Squads Dispatched 25 | . . . 4 1 . . 8 5 . . 7 . . . Investigation 6 | . . . 1 1 . . . 1 . . 3 . . . Extermination 2 | . . . . . . . . . . . 2 . . . Reinforcement 11 | . . . 3 . . . 3 3 . . 2 . . . Assault 6 | . . . . . . . 5 1 . . . . . . Garrison . | . . . . . . . . . . . . . . . Intercept . | . . . . . . . . . . . . . . . Searches Triggered . | . . . . . . . . . . . . . . . Construction Impeded . | . . . . . . . . . . . . . . . Haulers Reinforced . | . . . . . . . . . . . . . . . Active Scanning Responses . | . . . . . . . . . . . . . . . Cargo Convoy Interrupts 1 | . . . . . . . . . . . 1 . . . Stealth | -11 -10 -10 -9 -9 -9 -8 -8 -8 -8 -8 -6 -6 -6 -6 --------- Run | Yrd Mat Min Mat Min Exi Min Mat Sto Rec Scr Fac Low Low Dat Distress Signals 11 | . . . 2 3 . . 1 3 . 1 1 . . . Communications Jammed 33 | . . . . . . . 11 14 . . 8 . . . Distress Signals 28 | . . . . . . . 6 14 . . 8 . . . Times Spotted 365 | . 24 3 56 2 33 5 73 30 7 87 23 7 11 4 Peak Tracking Total 9 | . 6 3 4 2 9 3 7 5 3 9 4 3 4 2 Tactical Retreats 17 | . 2 . 1 . 10 . 2 . . 1 1 . . . Traps | -11 -10 -10 -9 -9 -9 -8 -8 -8 -8 -8 -6 -6 -6 -6 ------- Run | Yrd Mat Min Mat Min Exi Min Mat Sto Rec Scr Fac Low Low Dat Traps Triggered 4 | . 1 . 2 . . . . 1 . . . . . . Indirectly . | . . . . . . . . . . . . . . . Trap Hack Attempts . | . . . . . . . . . . . . . . . Triggered . | . . . . . . . . . . . . . . . Disarmed . | . . . . . . . . . . . . . . . Reprogrammed . | . . . . . . . . . . . . . . . Reused . | . . . . . . . . . . . . . . . Traps Extracted . | . . . . . . . . . . . . . . . Installed 4 | . . . . 4 . . . . . . . . . . Triggered 5 | . . . . . . . . . . . 1 2 2 . Most Traps Carried 1 | . . . . . . . . . . 1 . . . . Machines | -11 -10 -10 -9 -9 -9 -8 -8 -8 -8 -8 -6 -6 -6 -6 ---------- Run | Yrd Mat Min Mat Min Exi Min Mat Sto Rec Scr Fac Low Low Dat Machines Disabled 41 | . . . 2 . 10 . 2 3 . 17 5 1 1 . Max in Single Turn 2 | . . . 1 . 2 . 1 1 . 1 1 1 1 . Garrison Access 2 | . . . . . . . 1 1 . . . . . . Machines Repaired . | . . . . . . . . . . . . . . . Machines Dismantled . | . . . . . . . . . . . . . . . Machines Sabotaged . | . . . . . . . . . . . . . . . Overloaded Fab Kills . | . . . . . . . . . . . . . . . Hacking | -11 -10 -10 -9 -9 -9 -8 -8 -8 -8 -8 -6 -6 -6 -6 --------- Run | Yrd Mat Min Mat Min Exi Min Mat Sto Rec Scr Fac Low Low Dat Machines Accessed 68 | . 9 . 13 3 2 . 12 4 6 4 8 2 1 4 Terminals 45 | . 8 . 9 2 . . 9 3 6 . 6 1 1 . Fabricators 2 | . . . . . . . . . . . 2 . . . Repair Stations 5 | . 1 . 2 . . . 2 . . . . . . . Recycling Units . | . . . . . . . . . . . . . . . Scanalyzers 3 | . . . 2 . . . 1 . . . . . . . Garrison Access 1 | . . . . . . . . 1 . . . . . . Total Hacks 228 | . 30 . 36 5 2 . 53 6 9 27 22 4 6 28 Successful 155 | . 14 . 20 1 2 . 36 1 5 27 11 4 6 28 Failed 73 | . 16 . 16 4 . . 17 5 4 . 11 . . . Catastrophic 11 | . 2 . . 3 . . 1 1 . . 4 . . . Database Lockouts . | . . . . . . . . . . . . . . . Manual 93 | . 25 . 18 4 1 . 22 4 9 . 10 . . . Terminals 120 | . 28 . 23 4 . . 27 4 9 . 16 3 6 . Fabricators 6 | . . . . . . . . . . . 6 . . . Repair Stations 16 | . 2 . 5 . . . 9 . . . . . . . Recycling Units . | . . . . . . . . . . . . . . . Scanalyzers 25 | . . . 8 . . . 17 . . . . . . . Garrison Access 2 | . . . . . . . . 2 . . . . . . Terminal Hacks 85 | . 4 . 4 1 2 . 7 1 . 27 1 4 6 28 Record 47 | . . . . . 1 . . . . 26 . 3 6 11 Part Schematic 10 | . 1 . . . . . . . . . . . . 9 Robot Schematic 6 | . 1 . . . . . . . . . . . . 5 Robot Analysis 1 | . 1 . . . . . . . . . . . . . Prototype ID Bank 3 | . . . . . . . . . . . . . . 3 Open Door 3 | . . . . 1 . . . 1 . . . 1 . . Branch Access Points 1 | . . . . . . . 1 . . . . . . . Terminal Index 3 | . . . 1 . . . 1 . . . 1 . . . Unreport Threat 2 | . . . 1 . . . 1 . . . . . . . Locate Traps 5 | . 1 . 1 . . . 3 . . . . . . . Hauler Manifests 2 | . . . 1 . . . 1 . . . . . . . Derelict Proto ID Bank 2 | . . . . . 1 . . . . 1 . . . . Fabricator Hacks 5 | . . . . . . . . . . . 5 . . . Network Status 1 | . . . . . . . . . . . 1 . . . Load Schematic 2 | . . . . . . . . . . . 2 . . . Build 2 | . . . . . . . . . . . 2 . . . Repair Station Hacks 13 | . 2 . 4 . . . 7 . . . . . . . Scan Component 7 | . 1 . 2 . . . 4 . . . . . . . Repair 6 | . 1 . 2 . . . 3 . . . . . . . Recycling Unit Hacks . | . . . . . . . . . . . . . . . Scanalyzer 17 | . . . 4 . . . 13 . . . . . . . Insert Component 7 | . . . 2 . . . 5 . . . . . . . Analyze 10 | . . . 2 . . . 8 . . . . . . . Garrison Access Hacks . | . . . . . . . . . . . . . . . Unauthorized Hacks 35 | . 8 . 8 . . . 9 . 5 . 5 . . . Terminals 35 | . 8 . 8 . . . 9 . 5 . 5 . . . Track 1 | . . . . . . . . . . . 1 . . . Assimilate 3 | . 2 . 1 . . . . . . . . . . . Botnet 13 | . . . 6 . . . 4 . . . 3 . . . Operators 4 | . 1 . 1 . . . 1 . . . 1 . . . Skim 14 | . 5 . . . . . 4 . 5 . . . . . Fabricators . | . . . . . . . . . . . . . . . Repair Stations . | . . . . . . . . . . . . . . . Recycling Units . | . . . . . . . . . . . . . . . Scanalyzers . | . . . . . . . . . . . . . . . Garrison Access . | . . . . . . . . . . . . . . . Data Cores Recovered 1 | . . . . . . . 1 . . . . . . . Used . | . . . . . . . . . . . . . . . Hacking Detections 51 | . 9 . 12 2 . . 12 4 3 . 8 1 . . Full Trace Events 6 | . . . 1 . . . . 1 . . 3 1 . . Feedback Events . | . . . . . . . . . . . . . . . Feedback Blocked . | . . . . . . . . . . . . . . . Robot Schematics Acquired 6 | . 1 . . . . . . . . . . . . 5 Robots Built . | . . . . . . . . . . . . . . . Authchips . | . . . . . . . . . . . . . . . Time . | . . . . . . . . . . . . . . . Total Robot Build Rating . | . . . . . . . . . . . . . . . Part Schematics Acquired 15 | . 1 . . . . . 5 . . . . . . 9 Parts Built 2 | . . . . . . . . . . . 2 . . . Authchips . | . . . . . . . . . . . . . . . Time 79 | . . . . . . . . . . . 79 . . . Total Part Build Rating 5 | . . . . . . . . . . . 5 . . . Parts Repaired 6 | . 1 . 2 . . . 3 . . . . . . . Time 326 | . 26 . 58 . . . 242 . . . . . . . Parts Recycled . | . . . . . . . . . . . . . . . Recycled Matter . | . . . . . . . . . . . . . . . Retrieved Matter . | . . . . . . . . . . . . . . . Retrieved Components . | . . . . . . . . . . . . . . . Parts Scanalyzed 5 | . . . 1 . . . 4 . . . . . . . Part Schematics Acquired 5 | . . . . . . . 5 . . . . . . . Parts Damaged 1 | . . . 1 . . . . . . . . . . . Bothacking | -11 -10 -10 -9 -9 -9 -8 -8 -8 -8 -8 -6 -6 -6 -6 ------------ Run | Yrd Mat Min Mat Min Exi Min Mat Sto Rec Scr Fac Low Low Dat Used RIF Installer . | . . . . . . . . . . . . . . . Robots Hacked 9 | . . . . . 4 . . . 2 2 . . . 1 Non-combat 5 | . . . . . 3 . . . 2 . . . . . Combat 4 | . . . . . 1 . . . . 2 . . . 1 Robot Hacks Applied 9 | . . . . . 4 . . . 2 2 . . . 1 parse_system 8 | . . . . . 4 . . . 1 2 . . . 1 find_recycling 1 | . . . . . . . . . 1 . . . . . Relay Couplers Released 3 | . . . . . . . . 3 . . . . . . Machine Destruction 3 | . . . . . . . . 3 . . . . . . Fabnet Peak Effective % . | . . . . . . . . . . . . . . . Robots Rewired 11 | . . . . . . . . . 8 . . . 2 1 Allies Hacked . | . . . . . . . . . . . . . . . Hacks Repelled . | . . . . . . . . . . . . . . . Allies | -11 -10 -10 -9 -9 -9 -8 -8 -8 -8 -8 -6 -6 -6 -6 -------- Run | Yrd Mat Min Mat Min Exi Min Mat Sto Rec Scr Fac Low Low Dat Total Allies 23 | . 1 . . 1 . . . 10 8 . . . 2 1 Largest Group 11 | . 1 . . 1 . . . 10 11 11 . . 2 1 Highest-Rated Group 173 | . 10 . . 31 . . . 173 172 172 . . 129 96 Highest-Rated Ally 96 | . 10 . . 31 . . . 29 29 21 . . 68 96 Total Orders 65 | . 1 . . . . . . 16 . 45 . . 3 . STAY 29 | . 1 . . . . . . . . 26 . . 2 . FOLLOW 21 | . . . . . . . . 1 . 19 . . 1 . EXPLORE 15 | . . . . . . . . 15 . . . . . . Ally Attacks 313 | . . . . 1 . . . 12 34 256 . . 1 9 Total Damage 10573 | . . . . 22 . . . 163 486 9680 . . . 222 Kills 70 | . . . . . . . . 2 4 64 . . . . Allies Corrupted 2 | . . . . . . . . 1 . . . . . 1 Allies Melted 1 | . . . . . . . . . . 1 . . . . Turrets Deployed 4 | . . . . . . . . . . 4 . . . . Intel | -11 -10 -10 -9 -9 -9 -8 -8 -8 -8 -8 -6 -6 -6 -6 ------- Run | Yrd Mat Min Mat Min Exi Min Mat Sto Rec Scr Fac Low Low Dat Robot Analysis Total 146 | . 1 . . . . . . . . . . . . 145 Derelict Logs Recovered 4 | . . 2 . . . . . . . . . 1 1 . Drone Launches 18 | . . . . . . . . 18 . . . . . . Drone Recoveries 11 | . . . . . . . . 11 . . . . . . Exploration | -11 -10 -10 -9 -9 -9 -8 -8 -8 -8 -8 -6 -6 -6 -6 ------------- Run | Yrd Mat Min Mat Min Exi Min Mat Sto Rec Scr Fac Low Low Dat Turns Passed 40830 | 138 2510 1243 4516 3832 4101 362 3814 1025 1218 12334 1285 2319 1816 317 Spaces Moved 13765 | 63 878 662 1244 799 1257 148 1303 299 455 3739 736 1147 915 120 Core 23 | 1 . . . . . . . . . . . 2 . 20 Treads 8614 | 62 275 . 885 799 1135 . 960 299 455 3739 . 5 . . Legs . | . . . . . . . . . . . . . . . Wheels 5128 | . 603 662 359 . 122 148 343 . . . 736 1140 915 100 Hover . | . . . . . . . . . . . . . . . Flight . | . . . . . . . . . . . . . . . Fastest Speed 50 | 50 160 175 175 320 220 205 190 238 246 211 80 90 90 50 Average Speed 216 | 158 186 175 285 320 296 206 229 240 246 243 90 102 98 91 Slowest Speed 2900 | 160 320 175 320 320 400 220 318 246 246 340 100 2900 100 100 Overloaded Moves . | . . . . . . . . . . . . . . . Propulsion Burnouts . | . . . . . . . . . . . . . . . Robots Hopped . | . . . . . . . . . . . . . . . Cave-ins Triggered . | . . . . . . . . . . . . . . . Exploration Rate (%) 77 | 4 98 97 95 100 90 37 98 81 88 95 22 96 79 78 Regions Visited 14 Branch Regions 10 Pre-discovered Areas 24 | . . 1 . . 1 . . . 2 . . . . 20 Known Exits Taken 9 | . . 1 1 . 1 . 1 . 1 1 1 1 1 . Unknown Exits Taken 5 | 1 1 . . 1 . 1 . 1 . . . . . . Scrap Searched 20 | . . 1 . 3 . . . . . 9 . 5 2 . Spaces Dug 140 | . 3 . 6 5 . . 8 . . 31 34 24 29 . Terrain Destroyed 364 | . 3 . 19 19 12 40 40 12 1 81 43 35 58 1 Melee 32 | . 3 . . 5 . . 8 . . 2 14 . . . Projectile 126 | . . . 8 . 11 4 5 3 1 59 9 11 14 1 AOE 139 | . . . 11 14 . 36 27 7 . . . 10 34 . Terrain Rammed . | . . . . . . . . . . . . . . . Walls Destroyed . | . . . . . . . . . . . . . . . Machines Disabled . | . . . . . . . . . . . . . . . Actions | -11 -10 -10 -9 -9 -9 -8 -8 -8 -8 -8 -6 -6 -6 -6 --------- Run | Yrd Mat Min Mat Min Exi Min Mat Sto Rec Scr Fac Low Low Dat Total 23227 | 84 1614 714 1942 2047 1526 186 2030 510 518 6604 1156 2249 1761 286 Wait 7432 | . 629 22 435 1214 96 13 532 122 18 2347 164 1021 736 83 Move 13751 | 62 877 661 1243 798 1256 147 1302 298 454 3738 735 1146 914 120 Hop . | . . . . . . . . . . . . . . . Pick Up 211 | 7 6 4 29 2 41 1 22 3 2 57 28 4 3 2 Fast Attach 69 | 6 1 1 5 . 3 1 5 . . 25 6 9 5 2 Attach 120 | 1 2 . 9 . 10 2 11 4 . 36 7 12 11 15 Detach 75 | . . 1 . . 2 1 7 . . 29 10 10 9 6 Swap 301 | . 24 5 43 9 8 9 38 27 5 24 71 12 23 3 Drop 248 | . 2 1 33 4 39 2 30 1 . 78 28 12 7 11 Fire 820 | 8 67 19 137 7 66 10 55 22 13 230 73 23 53 37 Melee 174 | . 5 . 1 6 4 . 27 28 24 39 34 . . 6 Ram . | . . . . . . . . . . . . . . . Kick . | . . . . . . . . . . . . . . . Crush 18 | . 1 . 7 3 1 . 1 2 2 1 . . . . Escape Stasis . | . . . . . . . . . . . . . . . Rewire 1 | . . . . . . . . . . . . . . 1 Trap 4 | . . . . 4 . . . . . . . . . . Miscellaneous 3 | . . . . . . . . 3 . . . . . . Route ------- -11/Scrapyard -10/Materials (discovered 6 exits: *Mat x3 / [*Min x2] / *Sub) -10/Mines (discovered 3 exits: *Mat x2 / Sub) -9/Materials (discovered 4 exits: *Mat x3 / *Min) -9/Mines (discovered 4 exits: *Mat x2 / *Exi / [*Zio]) -9/Exiles (discovered 2 exits: *Min x2) -8/Mines (discovered 2 exits: *Mat x2) -8/Materials (discovered 4 exits: [*Fac x3] / *Sto) -8/Storage -8/Recycling (discovered 2 exits: *Fac / *Scr) -8/Scraptown (discovered 2 exits: *Fac x2) -6/Factory (discovered 3 exits: Fac x2 / *Low) -6/Lower Caves -6/Lower Caves (discovered 2 exits: *Fac / *Dat) -6/Data Miner (discovered 1 exit: [*Pro]) History --------- Turn | Location | Event 19 | -11/Scrapyard | Discovered new exit (range 15) 139 | -11/Scrapyard | Entered Materials 260 | -10/Materials | Discovered new exit (range 11) 311 | -10/Materials | Build established: Mutant 526 | -10/Materials | Discovered new exit (range 9) 670 | -10/Materials | Learned Storage garrison access intel 718 | -10/Materials | Identified exit to Subcaves 758 | -10/Materials | Identified exit to Materials 789 | -10/Materials | Learned 4 Recycling zone layouts 830 | -10/Materials | Repaired Lgt. Treads 885 | -10/Materials | Learned 2 Mines zone layouts 904 | -10/Materials | Discovered new exit (range 15) 1210 | -10/Materials | Discovered exit to Materials (range 16) 2649 | -10/Materials | Entered Mines 2665 | -10/Mines | Met a Derelict bent on vengeance 2809 | -10/Mines | Learned location of Storage (-8) 2879 | -10/Mines | Discovered exit to Materials (range 9) 2937 | -10/Mines | Build established: Scavenger-Mutant 3156 | -10/Mines | YI-UF0 nonchalantly dropped a Grenade Launcher on the ground 3164 | -10/Mines | Learned 2 Materials zone layouts 3204 | -10/Mines | Murdered YI-UF0 3218 | -10/Mines | Found Prototype Launcher 3218 | -10/Mines | Identified YI-UF0's Doublenader 3287 | -10/Mines | Found a damaged Exp. Sensor Array with a note attached 3291 | -10/Mines | Found Prototype Device 3491 | -10/Mines | Discovered exit to Materials (range 8) 3892 | -10/Mines | Entered Materials 3892 | -9/Materials | Evolved 2 slots: Utility x2 3893 | -9/Materials | Identified exit to Mines 4960 | -9/Materials | Destroyed 7 combat bots 5189 | -9/Materials | Discovered new exit (range 5) 5987 | -9/Materials | Identified Exp. Sensor Array 6205 | -9/Materials | Repaired Hrd. Light Armor Plating 6452 | -9/Materials | Repaired Core Shielding 6676 | -9/Materials | Discovered new exit (range 15) 7869 | -9/Materials | Discovered new exit (range 8) 8408 | -9/Materials | Entered Mines 8491 | -9/Mines | Assembled infested the area 9542 | -9/Mines | Received a Mining Laser from a helpful Derelict 9648 | -9/Mines | A Derelict revealed a hidden shortcut to a safe place 10026 | -9/Mines | Discovered new exit (range 9) 10989 | -9/Mines | Deemed a non-threat by the Exiles lab entrance 11051 | -9/Mines | Met a Derelict shopkeep closing up shop 11733 | -9/Mines | Discovered new exit (range 8) 11853 | -9/Mines | Found a hidden stash of uninstalled traps 12222 | -9/Mines | Discovered new exit (range 5) 12240 | -9/Mines | Entered Exiles 12241 | -9/Exiles | Identified exit to Mines 12320 | -9/Exiles | Met 8R-AWN 12373 | -9/Exiles | Met EX-HEX 12512 | -9/Exiles | Met EX-DEC 12525 | -9/Exiles | Learned location of Zion (-7) 12648 | -9/Exiles | Met EX-BIN 12701 | -9/Exiles | Aligned with FarCom system 12704 | -9/Exiles | Given EX-Vault access code 12778 | -9/Exiles | Opened EX-Vault 12796 | -9/Exiles | Found Deploy-a-Sentry 12800 | -9/Exiles | Found Deploy-a-Sentry 12805 | -9/Exiles | Found Deploy-a-Sentry 12817 | -9/Exiles | Found Modified TNC 12882 | -9/Exiles | Warned to stay clear of 0b10 Research branches 13080 | -9/Exiles | Discovered exit to Mines (range 14) 14796 | -9/Exiles | Build established: Mutant 14967 | -9/Exiles | Attacked by the Exiles 15079 | -9/Exiles | Core integrity fell below 50% 15144 | -9/Exiles | Destroyed 8R-AWN 15154 | -9/Exiles | Found 8R-AWN's Boregun 15163 | -9/Exiles | Found 8R-AWN's Boregun 15173 | -9/Exiles | Lost 8 parts (3n1u4w) 15300 | -9/Exiles | Destroyed EX-BIN 15300 | -9/Exiles | Destroyed EX-HEX 15410 | -9/Exiles | Build established: Scavenger-Mutant 15503 | -9/Exiles | Destroyed EX-DEC 15541 | -9/Exiles | Found Exp. Core Analyzer 15635 | -9/Exiles | Found AWS/EX-DEC 15645 | -9/Exiles | Found Deploy-a-Sentry 15950 | -9/Exiles | Found Exp. Targeting Computer 16341 | -9/Exiles | Stole two prototypes: Modified TNC, Deploy-a-Sentry 16341 | -9/Exiles | Entered Mines 16463 | -8/Mines | Discovered new exit (range 15) 16668 | -8/Mines | Discovered new exit (range 13) 16703 | -8/Mines | Entered Materials 16703 | -8/Materials | Evolved 2 slots: Propulsion x1, Weapon x1 17732 | -8/Materials | Discovered new exit (range 15) 17952 | -8/Materials | Build established: Gunner 18092 | -8/Materials | Identified exit to Storage 18285 | -8/Materials | Discovered new exit (range 5) 19008 | -8/Materials | Discovered new exit (range 15) 19294 | -8/Materials | Discovered new exit (range 5) 19503 | -8/Materials | First assault squad dispatched 19909 | -8/Materials | Repaired Broken Exp. Sensor Array 20286 | -8/Materials | Repaired Arm. Treads 20330 | -8/Materials | Sterilization system engaged 20330 | -8/Materials | Non-combat units ordered to evacuate 20356 | -8/Materials | Repaired Adv. Weapon Cycler 20430 | -8/Materials | Combat units ordered to evacuate 20513 | -8/Materials | Build established: Mutant 20517 | -8/Materials | Entered Storage 20518 | -8/Storage | Loaded intel: 1 garrison access location 21224 | -8/Storage | Core integrity fell below 50% 21294 | -8/Storage | Used back door to open Recycling access 21294 | -8/Storage | Discovered new exit (range 5) 21430 | -8/Storage | Assisted by bots powering up and referring to "LRC-V3" 21542 | -8/Storage | Entered Recycling 21542 | -8/Recycling | Accompanied by 7 allies 21543 | -8/Recycling | Identified exit to Factory 21733 | -8/Recycling | Build established: Commander-Mutant 22209 | -8/Recycling | Lost 3 allies 22552 | -8/Recycling | Learned location of 2 exits from Factory 22589 | -8/Recycling | Learned 8 Factory zone layouts 22617 | -8/Recycling | Learned Factory trap positions 22633 | -8/Recycling | Learned Factory scanalyzer intel 22640 | -8/Recycling | Learned 4 Factory zone layouts 22649 | -8/Recycling | Learned location of Extension (-5) 22668 | -8/Recycling | Identified exit to Scraptown 22685 | -8/Recycling | Scanned before Scraplab entrance 22719 | -8/Recycling | Entered Scraplab 22760 | -8/Recycling | Entered Scraptown 22760 | -8/Scraptown | Accompanied by 11 allies 22760 | -8/Scraptown | System corruption cleaned by C-Scrubber 22975 | -8/Scraptown | Turned away by UFD registrar 23069 | -8/Scraptown | Visited SPCMW 23106 | -8/Scraptown | Visited Shadow of the Wyrm 23298 | -8/Scraptown | Discovered exit to Factory (range 13) 23559 | -8/Scraptown | Visited CPS Storage 23573 | -8/Scraptown | Visited Symbiants 23618 | -8/Scraptown | Visited Bundlers 23773 | -8/Scraptown | Visited Cyclists 24464 | -8/Scraptown | DAS Turret deployed 24467 | -8/Scraptown | DAS Turret deployed 24473 | -8/Scraptown | DAS Turret deployed 24476 | -8/Scraptown | DAS Turret deployed 24582 | -8/Scraptown | Visited Assassins FH 25164 | -8/Scraptown | Build established: Commander-Gunner 25771 | -8/Scraptown | Attacked by Scraptown defenders 25782 | -8/Scraptown | Allies destroyed Triborg 25793 | -8/Scraptown | Found Siege Cannon 25802 | -8/Scraptown | Found Tri-treads 25839 | -8/Scraptown | Lost 9 allies 26128 | -8/Scraptown | Build established: Scavenger-Tank 27142 | -8/Scraptown | System corruption cleaned by C-Scrubber 27291 | -8/Scraptown | Build established: Tank 27643 | -8/Scraptown | Build established: Scavenger-Tank 28863 | -8/Scraptown | Build established: Gunner 29669 | -8/Scraptown | Build established: Scavenger-Gunner 29868 | -8/Scraptown | Destroyed 10 combat bots 30061 | -8/Scraptown | Destroyed 9 combat bots 30109 | -8/Scraptown | Lost 3 parts (1n1u1w) 30273 | -8/Scraptown | Core integrity fell below 20% 30343 | -8/Scraptown | Lost 4 parts (1p1n1u1w) 30467 | -8/Scraptown | Build established: Scavenger-Tank 30475 | -8/Scraptown | System corruption cleaned by C-Scrubber 30678 | -8/Scraptown | Visited Infowarlord's Domain 30872 | -8/Scraptown | Visited Science Guys 30906 | -8/Scraptown | Found System Spiker 30977 | -8/Scraptown | Visited Curators Association 31366 | -8/Scraptown | Visited Research Penetration Think Tank 31402 | -8/Scraptown | Visited DA-N13 Charitable Foundation 31424 | -8/Scraptown | Found DCF Scrap (29 items) 31825 | -8/Scraptown | Discovered exit to Factory (range 3) 31867 | -8/Scraptown | Build established: Scavenger-Mutant 32013 | -8/Scraptown | Visited Derelict Rescue Squad 32068 | -8/Scraptown | Visited LU-1G1's Boring Crew 32117 | -8/Scraptown | Found Prototype Special Weapon 32117 | -8/Scraptown | Identified LU-1G1's Laser Shovel 32246 | -8/Scraptown | Visited Modified Component R&D 32424 | -8/Scraptown | Build established: Scavenger-Tank 32840 | -8/Scraptown | Visited Chapter 10 33127 | -8/Scraptown | Found ID Mask 34020 | -8/Scraptown | Entered Cyclist Reading Room 34242 | -8/Scraptown | Found Prototype Reactor 34242 | -8/Scraptown | Identified MA-1KR's Cyclogen 34291 | -8/Scraptown | Found Prototype Wheel 34383 | -8/Scraptown | Found Exp. Signal Interpreter 34519 | -8/Scraptown | Build established: Scavenger-Mutant 34534 | -8/Scraptown | Found Unknown Device 34534 | -8/Scraptown | Identified Scrap Suit 35094 | -8/Scraptown | Entered Factory 35094 | -6/Factory | Evolved 4 slots: Propulsion x1, Utility x3 35095 | -6/Factory | Identified exit to Factory 35095 | -6/Factory | Identified exit to Lower Caves 35097 | -6/Factory | Loaded intel: 96 trap records 35097 | -6/Factory | Identified Ballwheel 35098 | -6/Factory | Loaded intel: 4 scanalyzer locations 35284 | -6/Factory | Fabricated Cargo Storage Unit? 35645 | -6/Factory | Fabricated Hrd. Heavy Armor Plating (x1) 36298 | -6/Factory | Cargo convoy interrupted 36379 | -6/Factory | Entered Lower Caves 36405 | -6/Lower Caves | Encountered a Warlord checkpoint 36682 | -6/Lower Caves | Build established: Hauler-Skirmisher 37667 | -6/Lower Caves | Attracted the attention of an 0b10 base 37725 | -6/Lower Caves | Learned Factory garrison access intel 37725 | -6/Lower Caves | Learned Extension security intel 37725 | -6/Lower Caves | Learned location of 1 exit from Proximity Caves 38469 | -6/Lower Caves | Discovered new exit (range 15) 38482 | -6/Lower Caves | Identified exit to Lower Caves 38698 | -6/Lower Caves | Entered another Lower Caves area 38739 | -6/Lower Caves | Discovered exit to Factory (range 9) 39102 | -6/Lower Caves | Build established: Hauler-Assassin 39582 | -6/Lower Caves | Build established: Hauler-Skirmisher 39682 | -6/Lower Caves | Attracted the attention of an 0b10 base 39702 | -6/Lower Caves | Learned Research terminal intel 39702 | -6/Lower Caves | Learned Extension security intel 39702 | -6/Lower Caves | Learned 6 Upper Caves zone layouts 39702 | -6/Lower Caves | Identified exit to Data Miner 39702 | -6/Lower Caves | Learned location of 1 exit from Lower Caves 39889 | -6/Lower Caves | Encountered a Warlord checkpoint 40005 | -6/Lower Caves | Spotted O2-DD5(f) 40005 | -6/Lower Caves | Spotted 3R-AFU(f) 40007 | -6/Lower Caves | Encountered a Master Thief 40007 | -6/Lower Caves | Encountered a Master Thief 40008 | -6/Lower Caves | System corruption reached 10% 40012 | -6/Lower Caves | Spotted IS-9M0(f) 40014 | -6/Lower Caves | Encountered a Master Thief 40016 | -6/Lower Caves | System corruption reached 30% 40021 | -6/Lower Caves | Rewired IS-9M0(f) 40030 | -6/Lower Caves | Rewired 3R-AFU(f) 40344 | -6/Lower Caves | Destroyed 3R-AFU(f) 40387 | -6/Lower Caves | Destroyed IS-9M0(f) 40514 | -6/Lower Caves | Entered Data Miner 40514 | -6/Data Miner | Discovered new exit (range 6) 40533 | -6/Data Miner | Met Data Miner 40558 | -6/Data Miner | Learned location of Section 7 (-2) 40558 | -6/Data Miner | Acquired the access code to Warlord's prototype stash 40574 | -6/Data Miner | Received God Mode back door access code from Data Miner 40599 | -6/Data Miner | Interfaced with the Data Conduit 40748 | -6/Data Miner | Lost 3 parts (3u) 40818 | -6/Data Miner | Core integrity fell below 50% 40832 | -6/Data Miner | System corrupted Last Messages --------------- 40790_ Enhanced Grunt destroyed. 40793_ Lyr. Medium Armor Plating destroyed. 40796_ System corrupted: HERF Cannon failed to cycle. 40798_ Cold Fusion Reactor destroyed. 40802_ System corrupted: HERF Cannon failed to cycle. 40806_ System corrupted: Energy discharge (-15). 40809_ Nuclear Core destroyed. 40813_ Exp. Targeting Computer destroyed. 40815_ 8R-AWN's Boregun destroyed. 40817_ Dropped Cargo Storage Unit. 40824_ System corrupted: Matter fused (-5). 40825_ Dropped Hvy. Phase Cannon. 40826_ Acquired System Spiker. 40827_ Dropped Ballwheel. 40828_ Acquired Remote Datajack. 40831_ SYS_ERR_328975498362890465 40831_ Enhanced Grunt slows to a halt. 40832_ Cogmind system terminally corrupted. Map ----- +----------------------------------------------------+ | | | | | | | | | | | | | | | | | | | | | | | | | | | ???????????????????????????????????????? | | ???????????????????????????????????????? | | ???????????????????????????????????????? | | ???????????????????????????????????????? | | ?????###?????????????????????????????### | | ????##;##############??????????????### | | ???##"" """"""""""""######????????## | | ??## """" """"""""# # ###### < # | | ??#" """"g""" | | ??# ! """" | | ??#"=""""" | | ###!%"""" | | #]!==""""" !!] @ | | ##!]!!"""" ! = """""""""""""""" | | #]#!%|! "" / """"############## | | !#!!!!" "" """""###????????????? | | ??##!!!"""""" "#####??????????????? | | ???#]#"#####"## "#??????????????????? | | ???#!###???#"### "#??????????????????? | | ????##?????#"### "#??????????????????? | | ???????????#"## "#??????????????????? | | ???????????#"## "#??????????????????? | | ?????????????# "#??????????????????? | | ?????????????### "#??????????????????? | | ???????????????# "##?????????????????? | | ??????????????## ""#?????????????????? | | ???????????#?## ""#?????????????????? | | ??????????##"#"X ""#?????????????????? | | ??????????""""" "####??????????????? | | ??????????""""" X"""""??????????????? | | ??????????##"#"X "##"#??????????????? | | ???????????#?## X""""#??????????????? | | ??????????????## "##"#??????????????? | | ???????????????#######?????????????????? | | ???????????????????????????????????????? | | ???????????????????????????????????????? | | ???????????????????????????????????????? | +----------------------------------------------------+ Best States ------------- Heat Dissipation 37 Energy Generation 19 Energy Capacity 2600 Matter Stores 300 Matter Capacity 300 Sight Range 16 Robot Scan Range 20 Terrain Scan Range 20 Terrain Scan Density 10 Jamming Range 16 Armor Coverage 1200 Resistance: EM 25 Core Shielding 20 Weapon Cycling 25 Evasion (%) 50 Targeting Accuracy 12 Target Analysis 6 Core Analysis 8 Recoil Reduction 3 Offensive Hacking 12 Defensive Hacking 10 Item Schematics ----------------- Cargo Storage Unit | -10/Materials | Hacked Exp. Sensor Array | -8/Materials | Scanalyzed Exp. Core Analyzer | -8/Materials | Scanalyzed Hrd. Heavy Armor Plating | -8/Materials | Scanalyzed Exp. Targeting Computer | -8/Materials | Scanalyzed Adv. Weapon Cycler | -8/Materials | Scanalyzed Combat Drone Bay | -6/Data Miner | Free Lgt. Regenerative Plating | -6/Data Miner | Free Cld. Gravmag System | -6/Data Miner | Free Imp. Energy Well | -6/Data Miner | Free Tesla Bomb Launcher | -6/Data Miner | Free Imp. Linear Gravjet | -6/Data Miner | Free Adv. Reaction Control System | -6/Data Miner | Free Hvy. Disruptor Cannon | -6/Data Miner | Free Hvy. Siege Treads | -6/Data Miner | Free Robot Schematics ------------------ M-13 Machinist | -10/Materials | Hacked G-50 Soldier | -6/Data Miner | Free L-41 Fighter | -6/Data Miner | Free Y-64 Sentinel | -6/Data Miner | Free E-15 Imp | -6/Data Miner | Free G-67 Veteran | -6/Data Miner | Free Fabricated ------------ Cargo Storage Unit | x1 | -6/Factory Hrd. Heavy Armor Plating | x1 | -6/Factory Alien Tech Used ----------------- None Achievements -------------- Assassin Challenges ------------ None Game ------ Seed RegenerativeCloakBroadsword Manual? 1 Play Time 04:31:26 Cumulative 513.4 hours Start 2024.09.27 @ 11:53:11 End 2024.10.11 @ 02:10:34 Sessions 25 Manual Loads 0 Difficulty Rogue Special Mode None Game No. 235 Rogue 235 Adventurer 0 Explorer 0 Win Type - Total 12 Types 9/0/1/1/0/0/0/1/0 Lore% 74 Gallery% 89 Achievement% 73 Wizard Run 0 Options --------- Layout 2 ASCII 0 Keyboard 1 Movement Vi Keybinds 0 Fullscreen 2 Font 32/SmallcapsGlow Map View 50x44 Zoom Use 0% Tactical HUD 1 Map Filters NONE Filters NONE Steam 0 RUN: 1f8f6ce5-8010-46b1-9513-e2246f751bce